bitfinex-derivatives/quotes_SOLF0:USTF0_20250428
["timestamp","ask_amount","ask_price","bid_price","bid_amount"]
[1745865635692,9.44625813,146.7,146.64,9.44625813]
[1745865635993,16.26075813,146.7,146.66,6.8157]
[1745865636293,16.26075813,146.7,146.64,9.44625813]
[1745865636797,16.26075813,146.7,146.67,6.8155]
[1745865637595,16.26105813,146.69,146.67,6.8155]
[1745865637991,4.1333,146.71,146.62,24.8]
[1745865637992,6.8144,146.7,146.65,9.44625813]
[1745865638198,16.26065813,146.7,146.66,9.44625813]
[1745865638700,16.26065813,146.7,146.67,6.8155]
[1745865640101,6.8144,146.7,146.68,6.8151]
[1745865641000,20.39355813,146.71,146.68,6.8151]
[1745865641199,13.57955813,146.71,146.68,6.8151]
[1745865641600,6.8142,146.7,146.68,6.8151]
[1745865644501,20.39355813,146.71,146.68,6.8151]
[1745865645199,4.1333,146.71,146.67,9.44625813]
[1745865645402,4.1333,146.71,146.68,9.44625813]
[1745865645898,4.1333,146.71,146.69,6.8142]
[1745865646401,10.9471,146.71,146.69,6.8142]
[1745865648104,6.8142,146.7,146.68,6.8149]
[1745865649305,10.9472,146.71,146.69,6.8147]
[1745865649508,4.1333,146.71,146.69,9.44625813]
[1745865650004,10.9471,146.71,146.69,6.8144]
[1745865650506,20.39335813,146.71,146.69,6.8144]
[1745865650708,9.44625813,146.7,146.57,20.4605]
[1745865650909,9.44625813,146.65,146.58,24.78]
[1745865651207,9.44625813,146.65,146.62,6.8176]
[1745865652000,9.44625813,146.65,146.61,16.26445813]
[1745865652206,9.44625813,146.65,146.61,6.8182]
[1745865652408,9.44625813,146.65,146.6,9.44625813]
[1745865652700,6.8173,146.64,146.61,6.8181]
[1745865658312,14.75405603,146.68,146.6,6.8187]
[1745865658515,14.75405603,146.68,146.59,14.75405603]
[1745865658710,2.0479,146.67,146.59,14.75405603]
[1745865658903,18.70815603,146.66,146.59,6.819]
[1745865659211,14.75405603,146.64,146.58,24.78]
[1745865659414,6.8184,146.61,146.58,31.5994]
[1745865660813,6.8178,146.63,146.58,31.5994]
[1745865661218,14.75405603,146.64,146.58,24.78]
[1745865662215,14.75405603,146.64,146.58,31.5995]
[1745865662615,6.8184,146.61,146.58,31.5995]
[1745865664017,6.8182,146.62,146.58,24.78]
[1745865664619,6.8182,146.62,146.59,6.8191]
[1745865666325,6.8182,146.62,146.6,6.8188]
[1745865667626,6.8182,146.62,146.59,6.8191]
[1745865668828,6.8184,146.61,146.59,6.8191]
[1745865669426,6.8181,146.62,146.6,6.8188]
[1745865670121,6.8177,146.63,146.58,24.78]
[1745865670528,6.8184,146.61,146.59,6.8191]
[1745865670728,18.70815603,146.66,146.54,515.6]
[1745865670729,14.75405603,146.62,146.54,515.6]
[1745865670930,14.75405603,146.6,146.54,24.78]
[1745865671225,39.53405603,146.6,146.54,24.78]
[1745865671431,41.59835603,146.6,146.54,24.78]
[1745865671627,6.8205,146.57,146.54,31.6013]
[1745865671927,41.59835603,146.6,146.54,24.78]
[1745865672127,6.8199,146.58,146.55,6.8209]
[1745865672829,6.8196,146.59,146.56,6.8204]
[1745865673324,6.8198,146.58,146.54,24.78]
[1745865673529,6.8198,146.58,146.55,6.8209]
[1745865674330,6.8206,146.57,146.54,31.6014]
[1745865674731,41.59835603,146.6,146.51,39.55405603]
[1745865674935,6.8211,146.56,146.51,24.8]
[1745865675729,6.8211,146.56,146.53,6.8217]
[1745865675929,6.8205,146.57,146.51,39.55405603]
[1745865676432,6.8205,146.57,146.54,6.8216]
[1745865676730,6.8205,146.57,146.51,39.55405603]
[1745865676933,6.8205,146.57,146.54,6.8214]
[1745865677131,6.82,146.58,146.53,14.75405603]
[1745865677430,6.82,146.58,146.55,6.8209]
[1745865679532,6.8203,146.57,146.55,6.8209]
[1745865680832,6.82,146.58,146.55,6.8209]
[1745865681634,6.8202,146.57,146.55,6.8209]
[1745865681934,26.8443,146.6,146.54,6.8215]
[1745865682234,26.8443,146.6,146.53,14.75405603]
[1745865682435,6.8204,146.57,146.53,14.75405603]
[1745865682633,6.8204,146.57,146.54,6.8215]
[1745865683636,6.8209,146.56,146.54,6.8215]
[1745865684030,6.8205,146.57,146.55,6.8211]
[1745865684338,6.8205,146.57,146.51,39.55405603]
[1745865684634,6.8205,146.57,146.54,6.8214]
[1745865685437,6.8205,146.57,146.51,39.55405603]
[1745865685438,6.8205,146.57,146.55,6.8212]
[1745865686036,6.8205,146.57,146.54,6.8212]
[1745865686235,6.8205,146.57,146.51,39.55405603]
[1745865686736,6.82,146.58,146.55,6.8211]
[1745865686936,41.59835603,146.6,146.51,39.55405603]
[1745865687130,41.59835603,146.6,146.54,6.8214]
[1745865687336,6.8205,146.57,146.54,6.8214]
[1745865687837,6.8207,146.56,146.54,6.8214]
[1745865689837,24.78,146.6,146.53,14.75405603]
[1745865690137,14.75405603,146.7,146.58,29.50811206]
[1745865690338,6.8169,146.65,146.61,21.57215603]
[1745865690541,6.0621,146.69,146.61,14.75405603]
[1745865690844,6.8163,146.66,146.62,6.8178]
[1745865691142,14.75405603,146.68,146.59,39.53405603]
[1745865691539,6.8173,146.64,146.6,6.8184]
[1745865692043,6.8175,146.63,146.6,6.8184]
[1745865693942,6.8175,146.63,146.61,6.8184]
[1745865697541,6.8172,146.64,146.62,6.8177]
[1745865698443,6.8172,146.64,146.61,6.8181]
[1745865698644,6.8175,146.63,146.61,6.8181]
[1745865698944,24.78,146.66,146.61,6.8181]
[1745865699144,24.78,146.66,146.6,6.8187]
[1745865700347,6.8178,146.63,146.6,6.8187]
[1745865701849,6.818,146.62,146.6,6.8187]
[1745865702650,14.75405603,146.64,146.56,24.78]
[1745865702949,4.036,146.61,146.56,24.78]
[1745865703147,4.036,146.61,146.56,31.6005]
[1745865703849,4.036,146.61,146.57,6.8202]
[1745865704346,6.8189,146.6,146.57,6.8202]
[1745865704850,6.8194,146.59,146.57,6.8202]
[1745865707349,4.036,146.61,146.56,24.78]
[1745865708050,6.8191,146.6,146.57,6.82]
[1745865708350,4.036,146.61,146.57,6.82]
[1745865708548,6.8194,146.59,146.57,6.82]
[1745865708947,4.036,146.61,146.57,6.82]
[1745865709150,6.8189,146.6,146.57,6.82]
[1745865714649,6.8189,146.6,146.58,6.8197]
[1745865715254,6.8194,146.59,146.57,6.82]
[1745865716057,6.8191,146.6,146.58,6.8197]
[1745865716558,6.8194,146.59,146.56,24.78]
[1745865717757,6.8194,146.59,146.57,6.82]
[1745865718154,6.8198,146.58,146.53,39.53405603]
[1745865718353,4.036,146.61,146.55,6.8209]
[1745865718559,6.82,146.58,146.53,39.53405603]
[1745865719559,6.8195,146.59,146.53,39.53405603]
[1745865720060,6.8195,146.59,146.56,6.8203]
[1745865720455,6.8199,146.58,146.56,6.8203]
[1745865720957,4.036,146.61,146.56,6.8203]
[1745865721161,6.8198,146.58,146.56,6.8203]
[1745865721663,6.8196,146.59,146.56,6.8203]
[1745865722462,6.8199,146.58,146.56,6.8203]
[1745865722658,4.036,146.61,146.57,6.82]
[1745865722859,4.036,146.61,146.53,39.53405603]
[1745865723160,6.8193,146.6,146.53,39.53405603]
[1745865723562,4.036,146.61,146.57,6.82]
[1745865724062,6.8189,146.6,146.57,6.82]
[1745865724364,4.036,146.61,146.57,6.82]
[1745865724561,4.036,146.61,146.53,39.53405603]
[1745865724857,4.036,146.61,146.53,24.78]
[1745865725162,14.75405603,146.6,146.54,6.8213]
[1745865725361,14.75405603,146.6,146.53,24.78]
[1745865726664,6.8206,146.57,146.54,6.8213]
[1745865726864,14.75405603,146.6,146.54,6.8213]
[1745865727164,14.75405603,146.6,146.53,31.6019]
[1745865727866,6.8211,146.56,146.53,31.6019]
[1745865728265,6.8211,146.56,146.54,6.8215]
[1745865729358,6.8205,146.57,146.54,6.8215]
[1745865729561,14.75405603,146.6,146.55,6.821]
[1745865729761,4.036,146.61,146.53,24.78]
[1745865730067,4.036,146.61,146.55,14.75405603]
[1745865730366,6.8191,146.6,146.55,14.75405603]
[1745865730566,6.8191,146.6,146.57,6.8202]
[1745865735471,6.8191,146.6,146.58,6.8197]
[1745865735872,6.8191,146.6,146.55,14.75405603]
[1745865736071,6.8191,146.6,146.57,6.8199]
[1745865737774,6.8194,146.59,146.57,6.8199]
[1745865737973,4.036,146.61,146.56,6.8205]
[1745865738471,6.8197,146.59,146.56,6.8205]
[1745865738674,6.8197,146.59,146.57,6.8201]
[1745865740173,6.8198,146.58,146.55,6.8208]
[1745865740375,6.8198,146.58,146.53,39.53405603]
[1745865740778,6.8194,146.59,146.56,6.8204]
[1745865741774,6.8194,146.59,146.57,6.8201]
[1745865743874,6.8194,146.59,146.56,6.8205]
[1745865744074,6.8199,146.58,146.56,6.8205]
[1745865745277,6.8199,146.58,146.55,6.8209]
[1745865745571,6.8203,146.57,146.55,6.8209]
[1745865745779,18.79005603,146.61,146.53,39.53405603]
[1745865745980,6.8195,146.59,146.56,6.8207]
[1745865746275,18.79005603,146.61,146.53,39.53405603]
[1745865746479,6.8201,146.58,146.55,6.821]
[1745865746681,6.8201,146.58,146.53,39.53405603]
[1745865747276,18.79005603,146.61,146.53,24.78]
[1745865747776,18.79005603,146.61,146.54,6.8214]
[1745865747977,14.75405603,146.59,146.53,24.78]
[1745865748482,6.8214,146.55,146.53,24.78]
[1745865748882,6.8214,146.55,146.53,31.602]
[1745865749081,6.8214,146.55,146.53,24.78]
[1745865750083,6.8214,146.55,146.53,31.6019]
[1745865750584,6.8209,146.56,146.53,31.6019]
[1745865750980,18.79005603,146.61,146.54,6.8215]
[1745865752787,18.79005603,146.61,146.55,6.8212]
[1745865753086,6.8205,146.57,146.55,6.8212]
[1745865753281,6.8205,146.57,146.54,6.8214]
[1745865756282,6.8205,146.57,146.55,6.8211]
[1745865756482,6.82,146.58,146.55,6.8211]
[1745865757785,6.8203,146.57,146.55,6.8211]
[1745865758586,6.82,146.58,146.55,6.8211]
[1745865758886,18.79005603,146.61,146.55,6.8211]
[1745865759089,4.036,146.61,146.55,14.75405603]
[1745865759484,6.8193,146.59,146.57,6.82]
[1745865760890,6.819,146.6,146.58,6.8196]
[1745865761093,24.78,146.62,146.57,14.75405603]
[1745865761291,2.1028,146.64,146.57,39.51405603]
[1745865761491,6.8181,146.62,146.57,39.51405603]
[1745865762289,6.8177,146.63,146.59,14.75405603]
[1745865762884,6.8177,146.63,146.6,6.8185]
[1745865763093,6.818,146.62,146.6,6.8185]
[1745865763393,6.818,146.62,146.59,21.57305603]
[1745865768098,6.818,146.62,146.6,6.8187]
[1745865772499,6.818,146.62,146.59,21.57325603]
[1745865773898,6.818,146.62,146.6,6.8188]
[1745865777798,6.8177,146.63,146.6,6.8188]
[1745865778199,6.8177,146.63,146.61,6.8183]
[1745865778696,6.8177,146.63,146.6,6.8186]
[1745865778902,6.8171,146.64,146.59,14.75405603]
[1745865779599,6.8171,146.64,146.61,6.818]
[1745865780401,6.8175,146.63,146.61,6.818]
[1745865780899,6.8175,146.63,146.6,6.8186]
[1745865782701,6.818,146.62,146.6,6.8186]
[1745865782999,14.75405603,146.66,146.57,39.51405603]
[1745865783200,6.8186,146.61,146.57,39.51405603]
[1745865783502,6.8186,146.61,146.58,6.8195]
[1745865784201,6.8186,146.61,146.59,6.8192]
[1745865784902,6.8181,146.62,146.59,6.8192]
[1745865785801,6.8177,146.63,146.6,6.8188]
[1745865786002,4.0043,146.67,146.59,14.75405603]
[1745865786401,6.8174,146.64,146.61,6.8182]
[1745865787502,6.8175,146.63,146.6,6.8187]
[1745865788706,6.8179,146.62,146.6,6.8187]
[1745865790004,14.75405603,146.66,146.61,6.8183]
[1745865790297,4.0043,146.67,146.61,6.8183]
[1745865791005,6.8175,146.63,146.61,6.8183]
[1745865791195,4.0043,146.67,146.6,6.8186]
[1745865791400,4.0043,146.67,146.59,14.75405603]
[1745865791702,6.8174,146.64,146.61,6.8179]
[1745865792703,6.8175,146.63,146.61,6.8179]
[1745865793003,6.8175,146.63,146.6,6.8186]
[1745865793205,6.8175,146.63,146.59,14.75405603]
[1745865794206,6.8175,146.63,146.61,6.8182]
[1745865794606,6.8175,146.63,146.59,14.75405603]
[1745865795108,6.8175,146.63,146.6,6.8184]
[1745865795607,6.8175,146.63,146.61,6.8184]
[1745865798804,6.8175,146.63,146.6,6.8187]
[1745865799008,6.8175,146.63,146.59,14.75405603]
[1745865799505,6.8175,146.63,146.61,6.8184]
[1745865802414,6.8175,146.63,146.6,34.16261958]
[1745865802415,9.44261958,146.63,146.6,24.72]
[1745865803214,6.8184,146.61,146.6,24.72]
[1745865803513,9.44261958,146.63,146.57,34.16261958]
[1745865803808,9.44261958,146.61,146.57,24.72]
[1745865804414,6.8194,146.59,146.57,31.54]
[1745865804714,6.8194,146.59,146.57,40.98261958]
[1745865805112,6.819,146.6,146.58,6.8198]
[1745865806112,6.819,146.6,146.57,31.54]
[1745865806309,6.819,146.6,146.57,24.72]
[1745865806714,4.2018,146.62,146.57,24.72]
[1745865807513,6.8195,146.59,146.57,31.5401]
[1745865807706,6.8195,146.59,146.57,24.72]
[1745865808718,6.819,146.6,146.57,24.72]
[1745865810314,6.819,146.6,146.58,6.8198]
[1745865811715,6.819,146.6,146.57,31.54]
[1745865812014,6.819,146.6,146.57,24.72]
[1745865812214,6.819,146.6,146.58,6.8198]
[1745865814819,6.819,146.6,146.57,31.5401]
[1745865815522,6.8193,146.59,146.57,24.72]
[1745865816020,6.8191,146.6,146.57,24.72]
[1745865816220,6.8191,146.6,146.57,31.5401]
[1745865822322,6.8198,146.58,146.57,24.72]
[1745865822622,4.2018,146.62,146.57,24.72]
[1745865822923,6.8193,146.6,146.57,31.5401]
[1745865824822,6.8194,146.59,146.57,24.72]
[1745865825524,6.8194,146.59,146.57,34.16727367]
[1745865827426,6.8198,146.58,146.57,34.16727367]
[1745865829928,6.8195,146.59,146.57,34.16727367]
[1745865830325,6.8195,146.59,146.57,40.98747367]
[1745865830830,6.8195,146.59,146.57,34.16727367]
[1745865834428,6.8198,146.58,146.57,34.16727367]
[1745865834731,6.8198,146.58,146.57,24.72]
[1745865835539,6.8198,146.58,146.56,9.44727367]
[1745865835740,6.8198,146.58,146.55,40.98817367]
[1745865836841,6.8203,146.57,146.55,40.98817367]
[1745865837042,9.44727367,146.56,146.48,24.72]
[1745865837336,6.8235,146.51,146.48,24.72]
[1745865837543,9.44727367,146.53,146.49,6.8235]
[1745865837737,9.44727367,146.53,146.49,16.27077367]
[1745865837938,26.7708,146.59,146.52,9.44727367]
[1745865838242,9.44727367,146.58,146.54,9.44727367]
[1745865838439,11.49807367,146.59,146.54,9.44727367]
[1745865838638,9.44727367,146.58,146.54,9.44727367]
[1745865838832,6.821,146.56,146.54,9.44727367]
[1745865839032,6.821,146.56,146.53,16.26897367]
[1745865839544,6.8205,146.57,146.54,6.8216]
[1745865840340,6.8205,146.57,146.53,9.44727367]
[1745865840843,6.8205,146.57,146.54,6.8213]
[1745865844245,6.8205,146.57,146.55,6.8211]
[1745865844449,6.8205,146.57,146.53,9.44727367]
[1745865844945,6.8205,146.57,146.54,6.8213]
[1745865845546,6.8205,146.57,146.55,6.8211]
[1745865845748,16.26727367,146.58,146.55,6.8211]
[1745865846047,11.49807367,146.59,146.55,6.8211]
[1745865846548,6.8199,146.58,146.56,6.8207]
[1745865846846,11.49807367,146.59,146.54,9.44727367]
[1745865847848,9.44727367,146.57,146.52,34.16727367]
[1745865848647,6.8209,146.56,146.53,6.8221]
[1745865848947,9.44727367,146.57,146.53,6.8221]
[1745865849743,6.8208,146.56,146.53,6.8221]
[1745865849939,9.44727367,146.57,146.53,6.8221]
[1745865851251,6.8213,146.55,146.53,6.8221]
[1745865851750,6.8213,146.55,146.52,31.5423]
[1745865852653,6.8213,146.55,146.53,6.8221]
[1745865852853,6.8213,146.55,146.52,24.72]
[1745865853554,6.8213,146.55,146.52,31.5422]
[1745865853854,6.8213,146.55,146.52,24.72]
[1745865855453,6.8213,146.55,146.53,6.8221]
[1745865856355,6.8213,146.55,146.52,31.5424]
[1745865857157,9.44727367,146.53,146.49,24.72]
[1745865857357,9.44727367,146.52,146.49,24.72]
[1745865857559,16.27007367,146.52,146.5,6.8235]
[1745865858557,9.44727367,146.52,146.5,6.8235]
[1745865859961,16.26957367,146.53,146.5,6.8235]
[1745865860151,16.26957367,146.53,146.51,6.8229]
[1745865862159,9.44727367,146.55,146.51,9.44727367]
[1745865864364,16.26867367,146.55,146.52,6.8225]
[1745865864563,16.26867367,146.55,146.51,9.44727367]
[1745865864761,6.8221,146.54,146.51,9.44727367]
[1745865865063,6.8221,146.54,146.5,9.44727367]
[1745865865363,6.8221,146.54,146.51,6.8229]
[1745865865564,6.8221,146.54,146.5,9.44727367]
[1745865865764,6.8221,146.54,146.51,9.44727367]
[1745865866669,6.8221,146.54,146.52,6.8223]
[1745865867770,16.26867367,146.55,146.52,6.8223]
[1745865868567,6.8217,146.54,146.52,6.8223]
[1745865868766,9.44727367,146.55,146.52,6.8223]
[1745865869064,6.8217,146.54,146.52,6.8223]
[1745865870970,16.26867367,146.55,146.52,6.8223]
[1745865876671,9.44727367,146.55,146.51,9.44727367]
[1745865876964,9.44727367,146.57,146.53,9.44727367]
[1745865877270,4.0032,146.58,146.55,9.44727367]
[1745865877469,9.44727367,146.6,146.55,9.44727367]
[1745865877973,6.8196,146.59,146.55,9.44727367]
[1745865878166,6.8196,146.59,146.56,9.44727367]
[1745865878471,6.8196,146.59,146.56,16.26757367]
[1745865879170,6.8196,146.59,146.56,6.8203]
[1745865879673,6.8196,146.59,146.57,6.8202]
[1745865880371,6.8191,146.6,146.57,6.8202]
[1745865880977,6.8194,146.59,146.57,6.8202]
[1745865881373,34.16727367,146.61,146.56,6.8205]
[1745865881672,34.16727367,146.61,146.55,9.44727367]
[1745865881972,13.55727367,146.62,146.57,9.44727367]
[1745865882169,13.55727367,146.62,146.58,9.44727367]
[1745865882771,6.8184,146.61,146.59,6.8191]
[1745865882972,6.8184,146.61,146.58,9.44727367]
[1745865883174,13.55727367,146.62,146.58,9.44727367]
[1745865883373,6.8184,146.61,146.59,6.8191]
[1745865884675,20.37547367,146.62,146.6,6.8188]
[1745865886467,20.37547367,146.62,146.59,6.8191]
[1745865888178,20.37547367,146.62,146.57,24.7]
[1745865888179,13.55727367,146.62,146.57,24.7]
[1745865888575,6.8191,146.6,146.57,31.5199]
[1745865889375,13.55727367,146.62,146.58,6.8196]
[1745865889376,6.8186,146.61,146.58,6.8196]
[1745865889574,6.8186,146.61,146.58,9.44727367]
[1745865889876,4.11,146.62,146.58,9.44727367]
[1745865890278,10.9283,146.62,146.59,6.8193]
[1745865891974,6.8175,146.63,146.57,39.4565551]
[1745865892276,14.7565551,146.66,146.57,39.4565551]
[1745865892477,14.7565551,146.66,146.61,6.8184]
[1745865893383,14.7565551,146.66,146.6,6.8186]
[1745865893576,6.8175,146.63,146.6,6.8186]
[1745865894486,6.8182,146.62,146.59,6.819]
[1745865894675,14.7565551,146.66,146.59,6.819]
[1745865894875,14.7565551,146.66,146.57,39.4565551]
[1745865895077,14.7565551,146.66,146.59,6.8192]
[1745865895570,6.8182,146.62,146.59,6.8192]
[1745865895973,6.8182,146.62,146.6,6.8188]
[1745865896579,6.8182,146.62,146.59,6.8191]
[1745865898482,6.8182,146.62,146.6,6.8188]
[1745865902485,6.8177,146.63,146.61,6.8183]
[1745865903283,6.8177,146.63,146.6,6.8186]
[1745865904081,24.7,146.67,146.59,14.7565551]
[1745865904288,6.2367,146.68,146.59,14.7565551]
[1745865904684,6.8165,146.65,146.62,6.8176]
[1745865905182,6.8165,146.65,146.63,6.8174]
[1745865906086,6.8165,146.65,146.62,6.8177]
[1745865906288,14.7565551,146.66,146.61,24.68]
[1745865906786,6.8173,146.64,146.58,24.68]
[1745865907280,6.8173,146.64,146.61,6.818]
[1745865907488,6.2367,146.68,146.59,14.7565551]
[1745865907686,6.2367,146.68,146.61,14.7565551]
[1745865907885,6.8163,146.66,146.63,6.8171]
[1745865908280,6.2367,146.68,146.62,24.68]
[1745865908588,4.1023,146.68,146.63,14.7565551]
[1745865908887,31.4943,146.7,146.67,6.8153]
[1745865909088,6.8143,146.7,146.67,6.8153]
[1745865910087,6.8138,146.71,146.66,24.68]
[1745865910487,6.0906,146.73,146.67,14.7565551]
[1745865910987,6.8135,146.72,146.67,14.7565551]
[1745865911687,6.8135,146.72,146.68,6.8147]
[1745865911889,6.8135,146.72,146.67,14.7565551]
[1745865912487,6.8135,146.72,146.68,6.8147]
[1745865912682,6.8135,146.72,146.67,14.7565551]
[1745865913487,6.8138,146.71,146.68,6.8149]
[1745865913786,6.0906,146.73,146.66,24.68]
[1745865913988,6.8138,146.71,146.68,6.8148]
[1745865914188,6.0906,146.73,146.66,24.68]
[1745865914585,6.814,146.71,146.68,6.8149]
[1745865914784,4.0683,146.73,146.67,14.7565551]
[1745865915384,10.8814,146.73,146.67,14.7565551]
[1745865915889,6.8133,146.72,146.67,14.7565551]
[1745865916291,4.0683,146.73,146.67,14.7565551]
[1745865916486,10.8814,146.73,146.67,14.7565551]
[1745865916686,4.0683,146.73,146.67,14.7565551]
[1745865916894,6.814,146.71,146.67,14.7565551]
[1745865917389,6.814,146.71,146.68,6.8149]
[1745865917590,6.814,146.71,146.67,14.7565551]
[1745865917990,6.814,146.71,146.68,6.815]
[1745865918288,4.0683,146.73,146.67,14.7565551]
[1745865918484,4.0683,146.73,146.66,31.4958]
[1745865918682,4.0683,146.73,146.66,24.68]
[1745865919086,6.8144,146.7,146.67,6.8153]
[1745865919289,4.0683,146.73,146.66,24.68]
[1745865919491,14.7565551,146.72,146.66,24.68]
[1745865919692,6.815,146.69,146.66,31.4959]
[1745865921292,6.815,146.69,146.67,6.8156]
[1745865921489,6.8144,146.7,146.67,6.8156]
[1745865921793,14.7565551,146.72,146.66,31.4958]
[1745865921991,6.8147,146.69,146.66,31.4958]
[1745865922795,6.8144,146.7,146.67,6.8156]
[1745865924897,8.8099,146.71,146.68,6.8151]
[1745865925299,1.9959,146.71,146.68,6.8151]
[1745865926102,6.8144,146.7,146.68,6.8151]
[1745865926401,6.8144,146.7,146.67,6.8154]
[1745865927301,6.8148,146.69,146.66,31.4958]
[1745865927500,1.9959,146.71,146.66,31.4958]
[1745865927803,6.8152,146.68,146.66,31.4958]
[1745865928103,6.8152,146.68,146.66,24.68]
[1745865928303,6.8156,146.67,146.66,24.68]
[1745865928605,6.8156,146.67,146.63,24.66]
[1745865928902,6.8153,146.68,146.63,24.66]
[1745865929302,1.9959,146.71,146.63,39.4165551]
[1745865929503,1.9959,146.71,146.65,14.7565551]
[1745865929905,6.8141,146.71,146.65,14.7565551]
[1745865930399,10.8813,146.73,146.67,14.7565551]
[1745865930604,10.8813,146.73,146.68,24.66]
[1745865931105,4.0683,146.73,146.68,24.66]
[1745865931302,2.0208,146.77,146.69,14.7565551]
[1745865931503,6.19,146.77,146.69,14.7565551]
[1745865931903,6.8121,146.75,146.72,6.8132]
[1745865932405,6.8124,146.74,146.71,6.8136]
[1745865935205,6.812,146.75,146.72,6.8132]
[1745865935706,14.7565551,146.76,146.69,14.7565551]
[1745865935907,6.8126,146.74,146.71,6.8135]
[1745865936909,14.7565551,146.76,146.68,24.66]
[1745865937306,14.7565551,146.74,146.68,24.66]
[1745865937507,14.7565551,146.74,146.69,6.8144]
[1745865938108,6.8136,146.72,146.69,6.8144]
[1745865942911,6.8138,146.71,146.69,6.8144]
[1745865943310,14.7565551,146.74,146.68,31.4749]
[1745865943513,14.7565551,146.74,146.68,24.66]
[1745865943816,14.7565551,146.74,146.69,6.8144]
[1745865944111,6.8137,146.72,146.69,6.8144]
[1745865944713,6.8138,146.71,146.69,6.8144]
[1745865949614,6.8135,146.72,146.7,6.8142]
[1745865949911,24.66,146.75,146.68,24.66]
[1745865950215,6.8136,146.72,146.7,6.814]
[1745865951013,6.8137,146.71,146.69,6.8144]
[1745865951414,14.7565551,146.74,146.68,24.66]
[1745865951616,6.8145,146.7,146.68,31.4749]
[1745865955018,6.8139,146.71,146.69,6.8147]
[1745865957616,6.8142,146.7,146.68,31.4749]
[1745865958218,6.8139,146.71,146.69,6.8147]
[1745865958619,24.66,146.75,146.68,24.66]
[1745865958823,6.8124,146.74,146.68,24.66]
[1745865959320,6.8124,146.74,146.71,6.8134]
[1745865959721,31.4721,146.75,146.69,14.7565551]
[1745865960025,6.19,146.77,146.69,14.7565551]
[1745865960217,6.8118,146.76,146.69,14.7565551]
[1745865960622,6.8118,146.76,146.73,6.8125]
[1745865960822,6.8115,146.76,146.73,6.8125]
[1745865961120,6.19,146.77,146.73,6.8125]
[1745865961521,6.8121,146.75,146.72,6.813]
[1745865962421,6.8121,146.75,146.73,6.8128]
[1745865962723,6.19,146.77,146.69,14.7565551]
[1745865963019,4.1692,146.77,146.69,14.7565551]
[1745865963322,24.64,146.81,146.73,14.7565551]
[1745865963516,24.64,146.81,146.76,6.8111]
[1745865963711,6.8099,146.8,146.76,6.8111]
[1745865963913,24.64,146.81,146.74,24.64]
[1745865964119,6.8103,146.79,146.74,24.64]
[1745865964622,6.8097,146.8,146.77,6.8109]
[1745865964923,39.3965551,146.81,146.74,24.64]
[1745865965223,39.3965551,146.81,146.75,6.8118]
[1745865965522,39.3965551,146.81,146.74,24.64]
[1745865965725,6.8103,146.79,146.76,6.8113]
[1745865965926,39.3965551,146.81,146.74,24.64]
[1745865967018,46.2060551,146.81,146.76,6.8114]
[1745865967224,46.2060551,146.81,146.74,24.64]
[1745865967823,31.4495,146.81,146.77,6.8105]
[1745865968017,6.8097,146.8,146.77,6.8105]
[1745865968923,6.8097,146.8,146.78,6.8105]
[1745865969325,6.8097,146.8,146.74,24.64]
[1745865969728,6.8097,146.8,146.77,6.8107]
[1745865969923,6.8101,146.79,146.74,24.64]
[1745865970123,24.64,146.81,146.74,24.64]
[1745865970326,24.64,146.81,146.77,6.8107]
[1745865970629,6.8098,146.8,146.77,6.8107]
[1745865971224,6.8089,146.82,146.78,6.8102]
[1745865971427,20.9197551,146.83,146.78,6.8102]